[Event "*** SCC Grand Prix: Titled Tuesday Blitz"]
[Site "Chess.com"]
[Date "2020.08.11"]
[Round "6"]
[White "RobertoJBM"]
[Black "Firegrizzly"]
[Result "0-1"]
[WhiteElo "2705"]
[BlackElo "2573"]
[TimeControl "180+1"]
[EndTime "11:08:40 PDT"]
[Termination "Firegrizzly won on time"]

1. d4 {[%clk 0:03:00.6]} 1... e6 {[%clk 0:02:54.1]} 2. c4 {[%clk 0:02:58.3]}
2... Nf6 {[%clk 0:02:54.3]} 3. Nc3 {[%clk 0:02:55.3]} 3... d5 {[%clk 0:02:54.3]}
4. cxd5 {[%clk 0:02:54.8]} 4... exd5 {[%clk 0:02:55.2]} 5. Bg5 {[%clk
0:02:53.6]} 5... c6 {[%clk 0:02:55.1]} 6. e3 {[%clk 0:02:53.5]} 6... Bd6 {[%clk
0:02:55]} 7. Bd3 {[%clk 0:02:53.1]} 7... h6 {[%clk 0:02:54.6]} 8. Bh4 {[%clk
0:02:52.8]} 8... Nbd7 {[%clk 0:02:55.1]} 9. Qc2 {[%clk 0:02:52.5]} 9... O-O
{[%clk 0:02:50.3]} 10. Nge2 {[%clk 0:02:51.8]} 10... Re8 {[%clk 0:02:50]} 11.
Bg3 {[%clk 0:02:50.9]} 11... Nf8 {[%clk 0:02:48.1]} 12. Bxd6 {[%clk 0:02:41.6]}
12... Qxd6 {[%clk 0:02:49]} 13. Ng3 {[%clk 0:02:42.2]} 13... g6 {[%clk
0:02:42.3]} 14. O-O-O {[%clk 0:02:38.4]} 14... Kg7 {[%clk 0:02:41.9]} 15. Kb1
{[%clk 0:02:38.2]} 15... a5 {[%clk 0:02:39.7]} 16. Rhe1 {[%clk 0:02:37.8]} 16...
a4 {[%clk 0:02:29.8]} 17. Nxa4 {[%clk 0:02:32.3]} 17... Qb4 {[%clk 0:02:29.4]}
18. Nc3 {[%clk 0:02:29.8]} 18... b5 {[%clk 0:02:25.1]} 19. Rc1 {[%clk
0:02:26.6]} 19... N8d7 {[%clk 0:02:23.5]} 20. Nce2 {[%clk 0:02:22.6]} 20... Bb7
{[%clk 0:02:23]} 21. Nf4 {[%clk 0:02:13.5]} 21... Qa5 {[%clk 0:02:17.6]} 22. b3
{[%clk 0:02:13.4]} 22... Nf8 {[%clk 0:02:12.4]} 23. h4 {[%clk 0:02:09.5]} 23...
Ra7 {[%clk 0:02:02.4]} 24. Re2 {[%clk 0:02:09.4]} 24... Rea8 {[%clk 0:02:01.8]}
25. h5 {[%clk 0:02:08.3]} 25... Qb4 {[%clk 0:01:56.5]} 26. Qc3 {[%clk
0:01:56.4]} 26... Qxc3 {[%clk 0:01:50.8]} 27. Rxc3 {[%clk 0:01:56.2]} 27... N6d7
{[%clk 0:01:44.9]} 28. hxg6 {[%clk 0:01:44.1]} 28... fxg6 {[%clk 0:01:44.5]} 29.
f3 {[%clk 0:01:44]} 29... h5 {[%clk 0:01:39.3]} 30. e4 {[%clk 0:01:35.4]} 30...
h4 {[%clk 0:01:39.4]} 31. Nf1 {[%clk 0:01:34.6]} 31... dxe4 {[%clk 0:01:36.5]}
32. fxe4 {[%clk 0:01:33.3]} 32... Nb8 {[%clk 0:01:33.7]} 33. e5 {[%clk
0:01:29.9]} 33... Na6 {[%clk 0:01:33.5]} 34. Be4 {[%clk 0:01:03.6]} 34... Nb4
{[%clk 0:01:31.9]} 35. Nd3 {[%clk 0:00:59.8]} 35... Nxa2 {[%clk 0:01:25.1]} 36.
Rcc2 {[%clk 0:00:59]} 36... Nc3+ {[%clk 0:01:24.2]} 37. Rxc3 {[%clk 0:00:57.3]}
37... Ra1+ {[%clk 0:01:23.7]} 38. Kc2 {[%clk 0:00:56.9]} 38... R8a2+ {[%clk
0:01:22.1]} 39. Nb2 {[%clk 0:00:56.6]} 39... Rxf1 {[%clk 0:01:21.8]} 40. Bxc6
{[%clk 0:00:52.8]} 40... b4 {[%clk 0:01:16.2]} 41. Rc5 {[%clk 0:00:29.6]} 41...
Ba6 {[%clk 0:01:12.2]} 42. Rd2 {[%clk 0:00:18]} 42... Raa1 {[%clk 0:01:10.9]}
43. Nd3 {[%clk 0:00:13.1]} 43... Ra2+ {[%clk 0:01:08.7]} 44. Nb2 {[%clk
0:00:12.9]} 44... Raa1 {[%clk 0:01:08.7]} 45. Nd3 {[%clk 0:00:12.7]} 45... Ne6
{[%clk 0:01:03.6]} 46. Nxb4 {[%clk 0:00:09]} 46... Rfc1+ {[%clk 0:00:58.9]} 47.
Kb2 {[%clk 0:00:07.9]} 47... Nxc5 {[%clk 0:00:58.1]} 48. dxc5 {[%clk 0:00:08]}
48... Rab1+ {[%clk 0:00:56.8]} 49. Ka2 {[%clk 0:00:08]} 49... Ra1+ {[%clk
0:00:54.7]} 50. Kb2 {[%clk 0:00:07.6]} 50... Rcb1+ {[%clk 0:00:51.2]} 51. Kc3
{[%clk 0:00:07.4]} 51... Bf1 {[%clk 0:00:48]} 52. Bf3 {[%clk 0:00:06.7]} 52...
Rc1+ {[%clk 0:00:45.6]} 53. Rc2 {[%clk 0:00:07.1]} 53... Rxc2+ {[%clk
0:00:45.3]} 54. Nxc2 {[%clk 0:00:08]} 54... Ra7 {[%clk 0:00:44]} 55. Ne3 {[%clk
0:00:08]} 55... g5 {[%clk 0:00:44.9]} 56. Nxf1 {[%clk 0:00:08]} 56... Ra2 {[%clk
0:00:40.6]} 57. Ne3 {[%clk 0:00:07.9]} 57... Rf2 {[%clk 0:00:36.9]} 58. Be4
{[%clk 0:00:07]} 58... Rf4 {[%clk 0:00:31.7]} 59. Kd3 {[%clk 0:00:07]} 59... g4
{[%clk 0:00:31.9]} 60. c6 {[%clk 0:00:04.7]} 60... h3 {[%clk 0:00:31.6]} 61.
gxh3 {[%clk 0:00:05.1]} 61... gxh3 {[%clk 0:00:31.7]} 62. c7 {[%clk 0:00:05.8]}
62... Rf8 {[%clk 0:00:31.7]} 63. Bf5 {[%clk 0:00:04.1]} 63... h2 {[%clk
0:00:31.3]} 64. Be4 {[%clk 0:00:03.1]} 64... Rc8 {[%clk 0:00:30.7]} 65. Nf5+
{[%clk 0:00:03.3]} 65... Kf8 {[%clk 0:00:29.3]} 66. Ng3 {[%clk 0:00:03.6]} 66...
Rxc7 {[%clk 0:00:29.2]} 67. Kd4 {[%clk 0:00:04.5]} 67... Rg7 {[%clk 0:00:29.5]}
68. Nf5 {[%clk 0:00:04.3]} 68... Rg1 {[%clk 0:00:29.5]} 69. Nd6 {[%clk
0:00:04.3]} 69... Rg4 {[%clk 0:00:29.2]} 70. b4 {[%clk 0:00:03.6]} 70... Rxe4+
{[%clk 0:00:29]} 71. Nxe4 {[%clk 0:00:04.5]} 71... h1=Q {[%clk 0:00:29.2]} 72.
b5 {[%clk 0:00:05.4]} 72... Qd1+ {[%clk 0:00:29.4]} 73. Kc5 {[%clk 0:00:05.4]}
73... Qc1+ {[%clk 0:00:30.3]} 74. Kd5 {[%clk 0:00:05.4]} 74... Qd1+ {[%clk
0:00:29.9]} 75. Kc5 {[%clk 0:00:05.5]} 75... Qh5 {[%clk 0:00:30]} 76. Kd5 {[%clk
0:00:06.4]} 76... Qf3 {[%clk 0:00:29.3]} 77. b6 {[%clk 0:00:06.2]} 77... Qd3+
{[%clk 0:00:29.1]} 78. Kc5 {[%clk 0:00:06.8]} 78... Qxe4 {[%clk 0:00:28.5]} 79.
Kd6 {[%clk 0:00:07.7]} 79... Qb7 {[%clk 0:00:28.7]} 0-1

[Event "*** SCC Grand Prix: Titled Tuesday Blitz"]
[Site "Chess.com"]
[Date "2020.08.11"]
[Round "6"]
[White "realmadridtv"]
[Black "olksuna"]
[Result "0-1"]
[WhiteElo "2464"]
[BlackElo "2638"]
[TimeControl "180+1"]
[EndTime "11:08:40 PDT"]
[Termination "olksuna won by resignation"]

1. e4 {[%clk 0:03:00.9]} 1... c5 {[%clk 0:03:00.4]} 2. Nf3 {[%clk 0:03:00.7]}
2... Nc6 {[%clk 0:03:01]} 3. Nc3 {[%clk 0:03:00.8]} 3... g6 {[%clk 0:03:01]} 4.
d4 {[%clk 0:03:00.9]} 4... cxd4 {[%clk 0:03:01.2]} 5. Nxd4 {[%clk 0:03:01.8]}
5... Bg7 {[%clk 0:03:01.9]} 6. Be3 {[%clk 0:03:02.4]} 6... Nf6 {[%clk 0:03:02]}
7. f3 {[%clk 0:02:53]} 7... O-O {[%clk 0:03:01.2]} 8. Bc4 {[%clk 0:02:49.1]}
8... Qb6 {[%clk 0:03:00.4]} 9. Bb3 {[%clk 0:02:22.6]} 9... Nxe4 {[%clk
0:02:52.6]} 10. Nd5 {[%clk 0:02:12.4]} 10... Qa5+ {[%clk 0:02:45.7]} 11. c3
{[%clk 0:02:12.4]} 11... Nc5 {[%clk 0:02:21.1]} 12. Bc2 {[%clk 0:02:03.1]} 12...
Ne6 {[%clk 0:02:11]} 13. Nb3 {[%clk 0:01:50.6]} 13... Qd8 {[%clk 0:02:05.9]} 14.
Qd2 {[%clk 0:01:48.8]} 14... d6 {[%clk 0:02:02.9]} 15. Bh6 {[%clk 0:01:42.2]}
15... Nc7 {[%clk 0:01:57.9]} 16. Nxc7 {[%clk 0:01:34.8]} 16... Qxc7 {[%clk
0:01:57.8]} 17. h4 {[%clk 0:01:32.6]} 17... Qd7 {[%clk 0:01:30.3]} 18. O-O-O
{[%clk 0:01:27.6]} 18... Qe6 {[%clk 0:01:28.2]} 19. Bxg7 {[%clk 0:01:24.7]}
19... Kxg7 {[%clk 0:01:27.8]} 20. h5 {[%clk 0:01:25.2]} 20... Rh8 {[%clk
0:00:48.2]} 21. hxg6 {[%clk 0:01:06.1]} 21... hxg6 {[%clk 0:00:47.8]} 22. Rxh8
{[%clk 0:00:58.9]} 22... Kxh8 {[%clk 0:00:48.7]} 23. Qh6+ {[%clk 0:00:48.9]}
23... Kg8 {[%clk 0:00:48.9]} 24. Rh1 {[%clk 0:00:42.9]} 24... Qf6 {[%clk
0:00:48.9]} 25. Rh4 {[%clk 0:00:20.5]} 25... Rb8 {[%clk 0:00:46.1]} 26. Kb1
{[%clk 0:00:12]} 26... Bf5 {[%clk 0:00:42.5]} 27. Bxf5 {[%clk 0:00:09.8]} 27...
Qxf5+ {[%clk 0:00:42]} 28. Kc1 {[%clk 0:00:08.1]} 28... Qf6 {[%clk 0:00:39.8]}
29. Qh7+ {[%clk 0:00:05.1]} 29... Kf8 {[%clk 0:00:39.7]} 30. Kb1 {[%clk
0:00:03.4]} 30... Qg7 {[%clk 0:00:38.7]} 31. Qh8+ {[%clk 0:00:02.1]} 31... Qxh8
{[%clk 0:00:38.2]} 32. Rxh8+ {[%clk 0:00:03]} 32... Kg7 {[%clk 0:00:39.1]} 33.
Rh3 {[%clk 0:00:03.5]} 33... Rh8 {[%clk 0:00:37.7]} 34. Rg3 {[%clk 0:00:03.3]}
34... Rh2 {[%clk 0:00:34.1]} 35. Kc2 {[%clk 0:00:04]} 35... f5 {[%clk
0:00:34.1]} 36. Nd2 {[%clk 0:00:04.3]} 36... Kf6 {[%clk 0:00:33.9]} 37. f4
{[%clk 0:00:04.3]} 37... e5 {[%clk 0:00:30.2]} 38. Nf3 {[%clk 0:00:04]} 38...
Rh1 {[%clk 0:00:30.3]} 39. fxe5+ {[%clk 0:00:04.1]} 39... dxe5 {[%clk
0:00:30.7]} 40. Ng5 {[%clk 0:00:04.1]} 40... e4 {[%clk 0:00:29.6]} 41. Nh3
{[%clk 0:00:03.8]} 41... Ne5 {[%clk 0:00:27.7]} 42. Nf4 {[%clk 0:00:03.6]} 42...
Ng4 {[%clk 0:00:27.1]} 43. Nd5+ {[%clk 0:00:02.2]} 43... Ke5 {[%clk 0:00:27.3]}
44. Ne7 {[%clk 0:00:02]} 44... g5 {[%clk 0:00:24.9]} 45. c4 {[%clk 0:00:01.1]}
45... Rf1 {[%clk 0:00:22.2]} 46. Rb3 {[%clk 0:00:01.5]} 46... Rf2+ {[%clk
0:00:21]} 47. Kc3 {[%clk 0:00:02.1]} 47... b6 {[%clk 0:00:20.3]} 48. Rb5+ {[%clk
0:00:02.5]} 48... Ke6 {[%clk 0:00:18.1]} 49. Nd5 {[%clk 0:00:02.2]} 49... Rxg2
{[%clk 0:00:17.5]} 50. a4 {[%clk 0:00:02.2]} 50... Rg3+ {[%clk 0:00:16.3]} 51.
Kb4 {[%clk 0:00:01.6]} 51... Ne3 {[%clk 0:00:16.6]} 52. a5 {[%clk 0:00:01.9]}
52... Nxd5+ {[%clk 0:00:14.4]} 53. cxd5+ {[%clk 0:00:02.4]} 53... Ke5 {[%clk
0:00:14.5]} 54. axb6 {[%clk 0:00:02.7]} 54... axb6 {[%clk 0:00:15.4]} 55. d6+
{[%clk 0:00:03.1]} 55... Ke6 {[%clk 0:00:13.1]} 56. Rxf5 {[%clk 0:00:03.6]}
56... Kxf5 {[%clk 0:00:12.4]} 57. Kb5 {[%clk 0:00:02.1]} 57... Rd3 {[%clk
0:00:13.3]} 58. Kc6 {[%clk 0:00:02.3]} 58... e3 {[%clk 0:00:13.7]} 59. b4 {[%clk
0:00:02.3]} 59... e2 {[%clk 0:00:13.9]} 60. d7 {[%clk 0:00:03.2]} 60... e1=Q
{[%clk 0:00:13.9]} 61. d8=Q {[%clk 0:00:04]} 61... Rxd8 {[%clk 0:00:13.1]} 62.
Kc7 {[%clk 0:00:03.9]} 62... Qe7+ {[%clk 0:00:13]} 63. Kc6 {[%clk 0:00:04.4]}
63... Qxb4 {[%clk 0:00:12]} 64. Kc7 {[%clk 0:00:04.5]} 64... Qc5+ {[%clk
0:00:12.1]} 65. Kb7 {[%clk 0:00:04.8]} 65... b5 {[%clk 0:00:08.8]} 66. Ka6
{[%clk 0:00:04.3]} 66... Ra8+ {[%clk 0:00:08.6]} 67. Kb7 {[%clk 0:00:04.7]}
67... Ra7+ {[%clk 0:00:09.2]} 0-1

[Event "*** SCC Grand Prix: Titled Tuesday Blitz"]
[Site "Chess.com"]
[Date "2020.08.11"]
[Round "6"]
[White "Resignify"]
[Black "profofchess"]
[Result "1/2-1/2"]
[WhiteElo "2200"]
[BlackElo "2402"]
[TimeControl "180+1"]
[EndTime "11:08:40 PDT"]
[Termination "Game drawn - insufficient material"]

1. e4 {[%clk 0:03:00.9]} 1... e6 {[%clk 0:03:00.3]} 2. d4 {[%clk 0:03:00.5]}
2... d5 {[%clk 0:03:01]} 3. Nc3 {[%clk 0:03:00.8]} 3... Bb4 {[%clk 0:03:00.7]}
4. e5 {[%clk 0:03:00.4]} 4... c5 {[%clk 0:03:01]} 5. a3 {[%clk 0:02:59.8]} 5...
Bxc3+ {[%clk 0:03:01.3]} 6. bxc3 {[%clk 0:03:00.2]} 6... Ne7 {[%clk 0:03:02.2]}
7. a4 {[%clk 0:02:59.8]} 7... Qa5 {[%clk 0:02:56.9]} 8. Qd2 {[%clk 0:02:48.7]}
8... Nbc6 {[%clk 0:02:56.3]} 9. Nf3 {[%clk 0:02:47.1]} 9... b6 {[%clk
0:02:55.6]} 10. Ba3 {[%clk 0:02:34.2]} 10... Ba6 {[%clk 0:02:38.4]} 11. Bxa6
{[%clk 0:02:30.1]} 11... Qxa6 {[%clk 0:02:39.3]} 12. dxc5 {[%clk 0:02:28.3]}
12... O-O {[%clk 0:02:34.9]} 13. cxb6 {[%clk 0:02:23.5]} 13... axb6 {[%clk
0:02:35.8]} 14. Bxe7 {[%clk 0:01:57.6]} 14... Nxe7 {[%clk 0:02:33.5]} 15. Qd3
{[%clk 0:01:54.6]} 15... Rfc8 {[%clk 0:02:17.2]} 16. Kd2 {[%clk 0:01:26.8]}
16... Rc4 {[%clk 0:01:58.9]} 17. Rhb1 {[%clk 0:01:25.4]} 17... Nc6 {[%clk
0:01:51.5]} 18. Ra3 {[%clk 0:01:12.1]} 18... h6 {[%clk 0:01:45.3]} 19. h3 {[%clk
0:01:09.8]} 19... Na5 {[%clk 0:01:05.4]} 20. Ke2 {[%clk 0:00:36.9]} 20... Re4+
{[%clk 0:00:53.8]} 21. Kf1 {[%clk 0:00:35.7]} 21... Nc4 {[%clk 0:00:54]} 22. Ra2
{[%clk 0:00:31.4]} 22... Nxe5 {[%clk 0:00:31.4]} 23. Nxe5 {[%clk 0:00:16.9]}
23... Rxe5 {[%clk 0:00:32.3]} 24. Qxa6 {[%clk 0:00:14.5]} 24... Rxa6 {[%clk
0:00:32.2]} 25. Rb4 {[%clk 0:00:10.9]} 25... h5 {[%clk 0:00:15.6]} 26. Rab2
{[%clk 0:00:11.2]} 26... g6 {[%clk 0:00:11.5]} 27. Rd4 {[%clk 0:00:10.9]} 27...
g5 {[%clk 0:00:08.7]} 28. Rbb4 {[%clk 0:00:09.6]} 28... h4 {[%clk 0:00:07.9]}
29. Rg4 {[%clk 0:00:08.1]} 29... f6 {[%clk 0:00:07.3]} 30. Rgd4 {[%clk
0:00:08.4]} 30... Kf7 {[%clk 0:00:06.6]} 31. c4 {[%clk 0:00:07.2]} 31... Ke7
{[%clk 0:00:05.9]} 32. cxd5 {[%clk 0:00:07]} 32... Rxd5 {[%clk 0:00:05]} 33. Ke2
{[%clk 0:00:04.4]} 33... Kd6 {[%clk 0:00:04.6]} 34. Rd3 {[%clk 0:00:03.2]} 34...
Rxd3 {[%clk 0:00:04.6]} 35. Kxd3 {[%clk 0:00:04.1]} 35... Kc5 {[%clk 0:00:04.6]}
36. Kc3 {[%clk 0:00:04.6]} 36... Ra7 {[%clk 0:00:02.8]} 37. Rc4+ {[%clk
0:00:04.9]} 37... Kd5 {[%clk 0:00:02.9]} 38. Rd4+ {[%clk 0:00:03.9]} 38... Ke5
{[%clk 0:00:02.2]} 39. Rc4 {[%clk 0:00:03.1]} 39... Kd5 {[%clk 0:00:02.3]} 40.
Rd4+ {[%clk 0:00:03.2]} 40... Kc6 {[%clk 0:00:02.8]} 41. Rc4+ {[%clk 0:00:02.6]}
41... Kd6 {[%clk 0:00:03.2]} 42. Rd4+ {[%clk 0:00:02.9]} 42... Ke7 {[%clk
0:00:03.6]} 43. Rc4 {[%clk 0:00:03.4]} 43... Rb7 {[%clk 0:00:03.3]} 44. Kb4
{[%clk 0:00:03.6]} 44... f5 {[%clk 0:00:03.5]} 45. Rc6 {[%clk 0:00:03.2]} 45...
g4 {[%clk 0:00:02.9]} 46. hxg4 {[%clk 0:00:02.8]} 46... fxg4 {[%clk 0:00:02.9]}
47. Rc4 {[%clk 0:00:03.7]} 47... Kf6 {[%clk 0:00:01.8]} 48. Rxg4 {[%clk
0:00:03.6]} 48... Rc7 {[%clk 0:00:02.3]} 49. Rxh4 {[%clk 0:00:03.3]} 49... Rxc2
{[%clk 0:00:02.5]} 50. Rf4+ {[%clk 0:00:03.9]} 50... Ke5 {[%clk 0:00:02.4]} 51.
Rf3 {[%clk 0:00:04.1]} 51... Rb2+ {[%clk 0:00:02.6]} 52. Kc4 {[%clk 0:00:04.6]}
52... Ra2 {[%clk 0:00:02.8]} 53. Kb5 {[%clk 0:00:04.7]} 53... Rb2+ {[%clk
0:00:02.7]} 54. Ka6 {[%clk 0:00:05.2]} 54... Ke4 {[%clk 0:00:02.8]} 55. Re3+
{[%clk 0:00:04.4]} 55... Kd5 {[%clk 0:00:02.9]} 56. Rf3 {[%clk 0:00:04.1]} 56...
e5 {[%clk 0:00:03.2]} 57. Rd3+ {[%clk 0:00:03.2]} 57... Kc4 {[%clk 0:00:03.2]}
58. Re3 {[%clk 0:00:02.9]} 58... Kd4 {[%clk 0:00:03.5]} 59. Rf3 {[%clk
0:00:02.6]} 59... e4 {[%clk 0:00:03.8]} 60. Rf8 {[%clk 0:00:02.6]} 60... Rb1
{[%clk 0:00:03.8]} 61. Rf6 {[%clk 0:00:02.4]} 61... Rb2 {[%clk 0:00:04.1]} 62.
Rxb6 {[%clk 0:00:01.9]} 62... Rxf2 {[%clk 0:00:03.9]} 63. Rb4+ {[%clk
0:00:01.6]} 63... Kd3 {[%clk 0:00:04]} 64. Rb5 {[%clk 0:00:02.5]} 64... Rxg2
{[%clk 0:00:04]} 65. Re5 {[%clk 0:00:03.1]} 65... Ra2 {[%clk 0:00:04.4]} 66. Re6
{[%clk 0:00:03.3]} 66... e3 {[%clk 0:00:04.7]} 67. a5 {[%clk 0:00:03.2]} 67...
Ra4 {[%clk 0:00:04.9]} 68. Kb6 {[%clk 0:00:03.4]} 68... Rb4+ {[%clk 0:00:04.8]}
69. Kc5 {[%clk 0:00:03.1]} 69... Re4 {[%clk 0:00:04.8]} 70. Rxe4 {[%clk
0:00:02.4]} 70... Kxe4 {[%clk 0:00:05.1]} 71. a6 {[%clk 0:00:03.3]} 71... e2
{[%clk 0:00:05.6]} 72. a7 {[%clk 0:00:04.2]} 72... e1=Q {[%clk 0:00:06.1]} 73.
a8=Q+ {[%clk 0:00:05.1]} 73... Kd3 {[%clk 0:00:05.6]} 74. Qd8+ {[%clk 0:00:05]}
74... Kc2 {[%clk 0:00:06]} 75. Qd4 {[%clk 0:00:04.5]} 75... Qc3+ {[%clk
0:00:05.3]} 76. Qxc3+ {[%clk 0:00:04]} 76... Kxc3 {[%clk 0:00:06.2]} 1/2-1/2

[Event "*** SCC Grand Prix: Titled Tuesday Blitz"]
[Site "Chess.com"]
[Date "2020.08.11"]
[Round "6"]
[White "sergivila"]
[Black "ENEASZ"]
[Result "1-0"]
[WhiteElo "2450"]
[BlackElo "2572"]
[TimeControl "180+1"]
[EndTime "11:08:46 PDT"]
[Termination "sergivila won by resignation"]

1. e4 {[%clk 0:03:00.9]} 1... d6 {[%clk 0:03:00.9]} 2. d4 {[%clk 0:03:00.4]}
2... Nf6 {[%clk 0:03:01.4]} 3. Nc3 {[%clk 0:02:59.9]} 3... e5 {[%clk 0:03:01.9]}
4. Nge2 {[%clk 0:02:58.4]} 4... Be7 {[%clk 0:03:01.3]} 5. g3 {[%clk 0:02:58]}
5... O-O {[%clk 0:03:00.6]} 6. Bg2 {[%clk 0:02:58]} 6... c6 {[%clk 0:02:56.5]}
7. O-O {[%clk 0:02:57.3]} 7... b5 {[%clk 0:02:52.4]} 8. a3 {[%clk 0:02:55.7]}
8... a5 {[%clk 0:02:52.3]} 9. h3 {[%clk 0:02:54.4]} 9... Ba6 {[%clk 0:02:51.7]}
10. Be3 {[%clk 0:02:50.5]} 10... b4 {[%clk 0:02:51.5]} 11. axb4 {[%clk
0:02:46.8]} 11... axb4 {[%clk 0:02:52.4]} 12. Na4 {[%clk 0:02:42.6]} 12... Bb5
{[%clk 0:02:46.2]} 13. b3 {[%clk 0:02:41.4]} 13... Nbd7 {[%clk 0:02:46.2]} 14.
Qd2 {[%clk 0:02:36]} 14... Re8 {[%clk 0:02:44.3]} 15. Rfd1 {[%clk 0:02:29]}
15... d5 {[%clk 0:02:23.9]} 16. dxe5 {[%clk 0:02:20]} 16... Nxe5 {[%clk
0:02:12.4]} 17. exd5 {[%clk 0:02:14.5]} 17... Nxd5 {[%clk 0:02:06.9]} 18. Bxd5
{[%clk 0:02:06.8]} 18... cxd5 {[%clk 0:01:59.5]} 19. Kg2 {[%clk 0:02:06.2]}
19... d4 {[%clk 0:01:49.7]} 20. Nxd4 {[%clk 0:02:02.8]} 20... Qd5+ {[%clk
0:01:46.5]} 21. Kh2 {[%clk 0:02:00.3]} 21... Bc6 {[%clk 0:01:45.4]} 22. f4
{[%clk 0:01:54.2]} 22... Nf3+ {[%clk 0:01:42.7]} 23. Nxf3 {[%clk 0:01:53.1]}
23... Qxf3 {[%clk 0:01:43.6]} 24. Qf2 {[%clk 0:01:48.6]} 24... Qh5 {[%clk
0:01:14.1]} 25. Bd4 {[%clk 0:01:43.2]} 25... Bf6 {[%clk 0:00:52.7]} 26. g4
{[%clk 0:01:11.2]} 26... Qh4 {[%clk 0:00:48.9]} 27. Qxh4 {[%clk 0:01:09]} 27...
Bxh4 {[%clk 0:00:49.8]} 28. Rd2 {[%clk 0:00:35.1]} 28... Be1 {[%clk 0:00:49.4]}
29. Rxe1 {[%clk 0:00:30.5]} 29... Rxe1 {[%clk 0:00:50.3]} 30. Nb6 {[%clk
0:00:27.6]} 30... Rae8 {[%clk 0:00:48.3]} 31. Kg3 {[%clk 0:00:24.3]} 31... R1e2
{[%clk 0:00:45.5]} 32. Rd1 {[%clk 0:00:21.6]} 32... Rxc2 {[%clk 0:00:44.9]} 33.
Nc4 {[%clk 0:00:20.5]} 33... Rg2+ {[%clk 0:00:31.1]} 34. Kh4 {[%clk 0:00:20]}
34... f6 {[%clk 0:00:32]} 35. Nd6 {[%clk 0:00:19.6]} 35... Rd8 {[%clk
0:00:18.4]} 36. Bc5 {[%clk 0:00:19]} 36... h6 {[%clk 0:00:17.5]} 37. f5 {[%clk
0:00:17.8]} 37... Kh7 {[%clk 0:00:14.4]} 38. Rc1 {[%clk 0:00:17.8]} 38... Bd5
{[%clk 0:00:12.5]} 39. Bxb4 {[%clk 0:00:17.9]} 39... Bxb3 {[%clk 0:00:12.3]} 40.
Rc7 {[%clk 0:00:17.5]} 40... Bd5 {[%clk 0:00:08.7]} 41. Nb7 {[%clk 0:00:14.5]}
41... Bxb7 {[%clk 0:00:07.4]} 42. Rxb7 {[%clk 0:00:14.4]} 42... Rb2 {[%clk
0:00:06.8]} 43. Be7 {[%clk 0:00:10.3]} 43... Rxb7 {[%clk 0:00:07.7]} 44. Bxd8
{[%clk 0:00:10.4]} 44... Kg8 {[%clk 0:00:06.7]} 45. Ba5 {[%clk 0:00:10.1]} 45...
Kf7 {[%clk 0:00:06.9]} 46. Bd2 {[%clk 0:00:09.7]} 46... Rb3 {[%clk 0:00:07.8]}
47. Bf4 {[%clk 0:00:08.3]} 47... Ke7 {[%clk 0:00:07.7]} 48. Bd2 {[%clk
0:00:07.8]} 48... Kd7 {[%clk 0:00:08.1]} 49. Bf4 {[%clk 0:00:06.2]} 49... Rd3
{[%clk 0:00:08.7]} 50. Bc1 {[%clk 0:00:05.8]} 50... Kc6 {[%clk 0:00:09.1]} 51.
Bf4 {[%clk 0:00:05]} 51... Kd5 {[%clk 0:00:09.7]} 52. Bc7 {[%clk 0:00:04.8]}
52... Ke4 {[%clk 0:00:10]} 53. Ba5 {[%clk 0:00:04.8]} 53... Rf3 {[%clk
0:00:10.2]} 54. Bb4 {[%clk 0:00:04.1]} 54... Kd3 {[%clk 0:00:10.7]} 55. Bf8
{[%clk 0:00:04]} 55... Ke2 {[%clk 0:00:10.6]} 56. Bxg7 {[%clk 0:00:03.8]} 56...
Kf2 {[%clk 0:00:11.2]} 57. Bxf6 {[%clk 0:00:03.1]} 57... Kg2 {[%clk 0:00:11.8]}
58. Kh5 {[%clk 0:00:03.6]} 58... Rxh3+ {[%clk 0:00:12.7]} 59. Kg6 {[%clk
0:00:03.7]} 59... Kf3 {[%clk 0:00:13.3]} 60. g5 {[%clk 0:00:03.9]} 60... h5
{[%clk 0:00:13.3]} 61. Be5 {[%clk 0:00:03.8]} 61... Kg4 {[%clk 0:00:08]} 62. f6
{[%clk 0:00:03.7]} 62... h4 {[%clk 0:00:07.2]} 63. f7 {[%clk 0:00:03.9]} 63...
Rf3 {[%clk 0:00:07.2]} 64. Bf6 {[%clk 0:00:04.1]} 64... h3 {[%clk 0:00:07.6]}
65. f8=Q {[%clk 0:00:03.6]} 65... h2 {[%clk 0:00:08.5]} 66. Qb4+ {[%clk
0:00:03.6]} 66... Kg3 {[%clk 0:00:06.9]} 67. Qe1+ {[%clk 0:00:03]} 67... Kg2
{[%clk 0:00:06.7]} 68. Qe2+ {[%clk 0:00:01.9]} 68... Rf2 {[%clk 0:00:07]} 69.
Qg4+ {[%clk 0:00:02.1]} 69... Kf1 {[%clk 0:00:07.6]} 70. Qd1+ {[%clk 0:00:02.1]}
70... Kg2 {[%clk 0:00:07.5]} 71. Qg4+ {[%clk 0:00:02.1]} 71... Kf1 {[%clk
0:00:07.8]} 72. Qh3+ {[%clk 0:00:02.5]} 72... Kg1 {[%clk 0:00:07.9]} 73. Bd4
{[%clk 0:00:02.7]} 73... h1=Q {[%clk 0:00:08.3]} 74. Qxh1+ {[%clk 0:00:02.5]}
74... Kxh1 {[%clk 0:00:08.1]} 75. Bxf2 {[%clk 0:00:03]} 75... Kg2 {[%clk
0:00:09]} 1-0